bitfinex-derivatives/quotes_BTCF0:USTF0_20251225
["timestamp","ask_amount","ask_price","bid_price","bid_amount"]
[1766622736871,0.00017105,87747.0,87736.0,0.0114057]
[1766622737269,0.00017105,87747.0,87740.0,0.0114052]
[1766622738374,0.00017105,87747.0,87736.0,0.0114056]
[1766622738774,0.00017105,87747.0,87738.0,0.0114054]
[1766622739977,0.05712,87752.0,87738.0,0.0114054]
[1766622740172,1.5,87754.0,87742.0,0.0114049]
[1766622740477,4e-08,87755.0,87740.0,0.0126]
[1766622741371,4e-08,87755.0,87744.0,0.0114047]
[1766622742481,4e-08,87755.0,87740.0,0.0126]
[1766622742669,4e-08,87755.0,87740.0,0.0240052]
[1766622742868,4e-08,87755.0,87740.0,0.0126]
[1766622744678,4e-08,87755.0,87741.0,0.0114051]
[1766622745472,4e-08,87755.0,87743.0,0.0114048]
[1766622746374,4e-08,87755.0,87742.0,0.05712]
[1766622746578,0.04088303,87769.0,87742.0,0.05712]
[1766622746579,0.09800303,87769.0,87742.0,0.05712]
[1766622746979,1.5,87768.0,87748.0,0.0114041]
[1766622747774,1.5,87768.0,87742.0,0.05712]
[1766622747973,1.5,87768.0,87744.0,0.0114046]
[1766622748174,1.5,87768.0,87758.0,0.0114028]
[1766622748368,1e-08,87773.0,87758.0,0.0114028]
[1766622748975,1.5,87772.0,87755.0,0.04276]
[1766622749780,1.5,87772.0,87756.0,0.0114031]
[1766622752575,1.5,87772.0,87758.0,0.0114028]
[1766622753176,1.5,87772.0,87755.0,0.0541632]
[1766622754482,1.5114011,87772.0,87755.0,0.04276]
[1766622754785,1.5114011,87772.0,87740.0,0.00017095]
[1766622754786,0.0114033,87755.0,87740.0,0.00017095]
[1766622754987,0.05708,87758.0,87740.0,0.00017095]
[1766622755180,0.0114035,87754.0,87740.0,0.00017095]
[1766622756387,0.01128,87758.0,87740.0,0.03]
[1766622756587,0.01128,87758.0,87738.0,0.05708]
[1766622756788,0.01128,87758.0,87738.0,0.08708]
[1766622757287,0.0114038,87751.0,87739.0,0.00017095]
[1766622757490,0.0114038,87751.0,87739.0,0.03017095]
[1766622757784,0.0114038,87751.0,87739.0,9.5e-07]
[1766622758091,0.0114043,87748.0,87735.0,0.05708]
[1766622758296,0.0114043,87748.0,87735.0,0.08708]
[1766622758677,0.0114043,87748.0,87734.0,0.05708]
[1766622758877,0.0114043,87748.0,87734.0,0.03]
[1766622759077,0.0114051,87742.0,87734.0,0.01]
[1766622759279,0.0114046,87745.0,87728.0,0.0114068]
[1766622759587,0.02468,87746.0,87728.0,0.0114068]
[1766622759588,0.02968,87746.0,87728.0,0.03]
[1766622759788,0.02968,87746.0,87731.0,0.0114063]
[1766622759989,0.02968,87746.0,87734.0,0.0114059]
[1766622760191,0.02968,87746.0,87736.0,0.0114056]
[1766622760388,0.02968,87746.0,87736.0,0.0414056]
[1766622760579,0.09240303,87753.0,87738.0,0.0114054]
[1766622760776,0.05152,87753.0,87738.0,0.0414054]
[1766622760982,0.05152,87753.0,87738.0,0.03]
[1766622762892,0.05152,87753.0,87738.0,0.0634]
[1766622763290,0.0114037,87752.0,87738.0,0.0634]
[1766622765294,0.05152,87753.0,87738.0,0.0634]
[1766622766694,0.05152,87753.0,87738.0,0.0414]
[1766622767496,0.05152,87753.0,87741.0,0.011405]
[1766622767689,0.05152,87753.0,87741.0,0.041405]
[1766622769698,0.04088303,87756.0,87748.0,0.0114041]
[1766622769995,0.04105398,87757.0,87748.0,0.0414041]
[1766622770496,0.04105398,87757.0,87748.0,0.03]
[1766622770697,0.04088303,87756.0,87748.0,0.03]
[1766622771196,0.04105398,87757.0,87748.0,0.03]
[1766622772195,0.04088303,87755.0,87748.0,0.03]
[1766622772695,0.04088303,87756.0,87748.0,0.03]
[1766622773096,0.04088303,87754.0,87748.0,0.01]
[1766622773297,0.04088303,87754.0,87738.0,0.0334]
[1766622773498,0.04088303,87754.0,87738.0,0.0434]
[1766622773698,0.04088303,87754.0,87738.0,0.0254]
[1766622774499,0.04088303,87755.0,87738.0,0.0254]
[1766622775300,0.04088303,87756.0,87738.0,0.0254]
[1766622776000,0.04088303,87755.0,87738.0,0.0254]
[1766622776201,0.04088303,87756.0,87740.0,0.0114052]
[1766622776403,0.0114036,87753.0,87740.0,0.03]
[1766622776597,0.04088303,87755.0,87740.0,0.03]
[1766622776902,0.04088303,87753.0,87740.0,0.03]
[1766622777302,0.04088303,87754.0,87740.0,0.03]
[1766622779103,0.04088303,87754.0,87738.0,0.0154]
[1766622779305,0.0114035,87754.0,87738.0,0.0454]
[1766622780808,0.0114035,87754.0,87738.0,0.0274]
[1766622782102,0.02471771,87753.0,87738.0,0.0274]
[1766622782303,0.02471771,87752.0,87738.0,0.0274]
[1766622782503,0.02471771,87751.0,87738.0,0.0274]
[1766622782703,0.02471771,87750.0,87738.0,0.0274]
[1766622782903,0.02471771,87749.0,87731.0,0.00017095]
[1766622783110,0.0114044,87747.0,87732.0,0.01964]
[1766622783310,0.02471771,87746.0,87732.0,0.04964]
[1766622784196,0.02471771,87745.0,87732.0,0.04964]
[1766622784399,0.02471771,87744.0,87732.0,0.04964]
[1766622784607,0.02471771,87743.0,87732.0,0.04964]
[1766622784904,0.02471771,87742.0,87732.0,0.04964]
[1766622785095,0.02471771,87741.0,87732.0,0.04964]
[1766622785294,0.0114043,87748.0,87717.0,0.1186]
[1766622785295,0.02471771,87740.0,87717.0,0.1186]
[1766622785495,0.0114056,87738.0,87719.0,0.0114079]
[1766622785712,0.0114058,87736.0,87719.0,0.03]
[1766622786008,0.03612361,87735.0,87719.0,0.03]
[1766622786204,0.02471771,87734.0,87719.0,0.03]
[1766622786911,0.02471771,87733.0,87719.0,0.03]
[1766622787212,0.02471771,87732.0,87719.0,0.03]
[1766622787411,0.02471771,87731.0,87719.0,0.03]
[1766622787601,0.02471771,87730.0,87719.0,0.03]
[1766622787801,0.02471771,87729.0,87719.0,0.03]
[1766622788114,0.02471771,87728.0,87719.0,0.03]
[1766622788310,0.00017095,87735.0,87719.0,0.03]
[1766622788507,0.02500839,87734.0,87719.0,0.03]
[1766622788698,0.02500839,87733.0,87719.0,0.03]
[1766622788902,0.02500839,87732.0,87719.0,0.03]
[1766622789102,0.02500839,87731.0,87719.0,0.03]
[1766622789308,0.02500839,87730.0,87720.0,0.0114078]
[1766622789508,0.02500839,87729.0,87720.0,0.0414078]
[1766622789704,0.00017095,87735.0,87720.0,0.03]
[1766622789906,0.0250035,87734.0,87720.0,0.03]
[1766622790212,0.0250035,87733.0,87723.0,0.0114074]
[1766622790406,0.0250035,87732.0,87723.0,0.0414074]
[1766622790611,0.0250035,87731.0,87723.0,0.0414074]
[1766622790810,0.0250035,87730.0,87723.0,0.03]
[1766622791007,0.0250035,87729.0,87723.0,0.03]
[1766622791208,0.00017095,87735.0,87723.0,0.03]
[1766622791408,0.02499578,87734.0,87723.0,0.03]
[1766622791609,0.02499578,87733.0,87723.0,0.03]
[1766622791809,0.02499578,87732.0,87723.0,0.03]
[1766622792013,0.02499578,87731.0,87723.0,0.03]
[1766622792209,0.02499578,87730.0,87723.0,0.03]
[1766622792513,0.02499578,87729.0,87723.0,0.03]
[1766622792714,0.02499578,87728.0,87723.0,0.03]
[1766622792912,0.02499578,87727.0,87718.0,0.01869845]
[1766622793102,8e-08,87726.0,87718.0,0.03869845]
[1766622793301,0.04088303,87738.0,87718.0,0.03869845]
[1766622793714,0.04088303,87739.0,87730.0,0.0114065]
[1766622793918,0.05444303,87741.0,87730.0,0.0414065]
[1766622795719,0.01356,87741.0,87730.0,0.0414065]
[1766622798214,0.04088303,87742.0,87730.0,0.0414065]
[1766622798420,0.04088303,87740.0,87730.0,0.03]
[1766622799015,0.04088303,87737.0,87730.0,0.03]
[1766622800012,0.04088303,87737.0,87730.0,0.021]
[1766622802229,0.04088303,87743.0,87730.0,0.021]
[1766622803830,0.04088303,87741.0,87730.0,0.021]
[1766622805230,0.04088303,87740.0,87730.0,0.021]
[1766622806027,0.0248855,87739.0,87731.0,0.0114064]
[1766622806228,0.0248855,87738.0,87731.0,0.0414064]
[1766622806425,0.0248855,87737.0,87731.0,0.0414064]
[1766622806625,0.0248855,87736.0,87731.0,0.0414064]
[1766622806825,0.0248855,87735.0,87731.0,0.0414064]
[1766622807025,0.0248855,87734.0,87731.0,0.0214064]
[1766622807332,0.0248855,87733.0,87731.0,0.0214064]
[1766622807533,0.04088303,87740.0,87731.0,0.0214064]
[1766622807833,0.04088303,87742.0,87731.0,0.0214064]
[1766622808233,0.04088303,87742.0,87731.0,0.0328128]
[1766622808931,0.04105398,87744.0,87735.0,0.0114059]
[1766622809129,0.06161646,87749.0,87735.0,0.0414059]
[1766622809632,0.06161646,87749.0,87735.0,0.03]
[1766622812037,0.0114044,87747.0,87735.0,0.01]
[1766622812341,0.06161646,87748.0,87736.0,0.0114057]
[1766622812540,0.06161646,87748.0,87736.0,0.03]
[1766622814239,0.06161646,87747.0,87736.0,0.02]
[1766622815240,0.06161646,87746.0,87736.0,1.115e-05]
[1766622815734,0.06161646,87747.0,87736.0,1.115e-05]
[1766622818832,0.06161646,87744.0,87736.0,1.115e-05]
[1766622819732,0.0114048,87743.0,87736.0,1.115e-05]
[1766622819933,0.06161646,87744.0,87736.0,1.115e-05]
[1766622820435,0.07302116,87744.0,87736.0,1.115e-05]
[1766622821144,0.06161646,87743.0,87736.0,1.115e-05]
[1766622821346,0.06161646,87743.0,87736.0,0.03]
[1766622821644,0.06161646,87743.0,87736.0,0.01]
[1766622823047,0.0248105,87742.0,87727.0,0.03169115]
[1766622823244,0.0248105,87741.0,87727.0,0.06169115]
[1766622823449,0.0248105,87740.0,87727.0,0.06169115]
[1766622823644,0.0248105,87739.0,87727.0,0.06169115]
[1766622823837,0.0248105,87738.0,87727.0,0.06169115]
[1766622824037,0.0248105,87737.0,87727.0,0.06169115]
[1766622824337,0.0248105,87736.0,87727.0,0.06169115]
[1766622824536,0.0248105,87735.0,87727.0,0.06169115]
[1766622824737,0.0248105,87734.0,87727.0,0.06169115]
[1766622824938,0.06161646,87743.0,87727.0,0.06169115]
[1766622825750,0.011405,87742.0,87727.0,0.06169115]
[1766622825951,0.07302146,87742.0,87727.0,0.06169115]
[1766622828348,0.07302146,87742.0,87727.0,0.03169115]
[1766622830653,0.06161646,87742.0,87727.0,0.03169115]
[1766622832253,0.06161646,87742.0,87727.0,0.03]
[1766622832453,0.06161646,87741.0,87724.0,0.02976]
[1766622832649,0.06161646,87740.0,87724.0,0.05976]
[1766622832954,0.0114054,87739.0,87724.0,0.05976]
[1766622834150,0.07302186,87739.0,87724.0,0.05976]
[1766622834348,0.06161646,87740.0,87724.0,0.05976]
[1766622835453,0.06161646,87740.0,87724.0,0.0151672]
[1766622836253,0.06161646,87740.0,87725.0,0.0114072]
[1766622836455,0.06161646,87740.0,87725.0,0.0414072]
[1766622836954,0.0251653,87739.0,87725.0,0.0414072]
[1766622837154,0.0251653,87738.0,87725.0,0.0414072]
[1766622837355,0.0251653,87737.0,87725.0,0.03]
[1766622837653,0.0251653,87736.0,87725.0,0.03]
[1766622837841,0.0251653,87735.0,87725.0,0.03]
[1766622838044,0.0251653,87734.0,87725.0,0.03]
[1766622838255,0.0251653,87733.0,87725.0,0.03]
[1766622838554,0.0251653,87732.0,87725.0,0.03]
[1766622838754,0.0251653,87731.0,87725.0,0.03]
[1766622838954,0.0251653,87730.0,87725.0,0.03]
[1766622839251,0.0251653,87729.0,87725.0,0.03]
[1766622839449,0.0251653,87728.0,87725.0,0.03]
[1766622839640,0.0251653,87727.0,87721.0,0.05712]
[1766622839842,0.0251653,87726.0,87721.0,0.08712]
[1766622840144,0.00017095,87733.0,87721.0,0.08712]
[1766622840341,0.02516471,87732.0,87721.0,0.03]
[1766622840559,0.02516471,87731.0,87720.0,0.03416]
[1766622840762,0.02516471,87730.0,87720.0,0.0393495]
[1766622841458,0.02516471,87729.0,87720.0,0.0393495]
[1766622841647,0.02516471,87728.0,87720.0,0.0393495]
[1766622841846,0.02516471,87727.0,87720.0,0.0393495]
[1766622842047,0.02516471,87726.0,87720.0,0.0393495]
[1766622842247,0.04106887,87729.0,87720.0,0.0393495]
[1766622842955,0.04106887,87730.0,87720.0,0.0393495]
[1766622843357,0.04106887,87730.0,87722.0,0.0114075]
[1766622843561,0.04106887,87730.0,87722.0,0.0414075]
[1766622847652,0.04106887,87730.0,87722.0,0.0004075]
[1766622848162,0.04106887,87730.0,87722.0,0.011815]
[1766622848761,0.04106887,87730.0,87722.0,0.0004075]
[1766622849663,0.04106887,87727.0,87720.0,0.0093495]
[1766622849863,7e-08,87727.0,87723.0,0.0114074]
[1766622850064,7e-08,87727.0,87723.0,0.0414074]
[1766622850253,0.06161646,87732.0,87723.0,0.0414074]
[1766622851153,0.06161646,87732.0,87723.0,0.03]
[1766622851354,0.06161646,87731.0,87723.0,0.03]
[1766622852265,0.00017095,87733.0,87723.0,0.03]
[1766622854269,0.02581216,87732.0,87723.0,0.03]
[1766622854569,0.02581216,87731.0,87723.0,0.014]
[1766622854770,0.02581216,87730.0,87723.0,0.014]
[1766622854969,0.02581216,87729.0,87723.0,0.014]
[1766622855168,6e-08,87728.0,87723.0,0.014]
[1766622855363,0.0114051,87742.0,87723.0,0.014]
[1766622855364,0.02752,87743.0,87731.0,0.0114064]
[1766622855565,0.08185369,87748.0,87733.0,0.0114061]
[1766622855763,0.14324396,87762.0,87743.0,0.0114048]
[1766622855764,0.18417085,87756.0,87743.0,0.0114048]
[1766622855972,0.0114023,87763.0,87743.0,0.03]
[1766622856170,0.0114023,87763.0,87743.0,0.0414048]
[1766622856370,0.00017095,87762.0,87744.0,0.00017095]
[1766622856667,0.00017095,87762.0,87744.0,0.03017095]
[1766622858072,0.0114026,87761.0,87744.0,0.03017095]
[1766622859774,0.00017095,87762.0,87744.0,0.04157555]
[1766622861172,0.01157335,87762.0,87744.0,0.04157555]
[1766622861373,0.01157335,87762.0,87744.0,0.03017095]
[1766622862972,0.01157335,87762.0,87744.0,0.01]
[1766622864180,0.01157335,87762.0,87744.0,0.01017095]
[1766622864479,0.0114028,87759.0,87744.0,0.01017095]
[1766622865371,0.0114031,87757.0,87744.0,0.01017095]
[1766622867273,0.02515402,87756.0,87744.0,0.01017095]
[1766622867466,0.02515402,87755.0,87744.0,0.01017095]
[1766622867667,0.02515402,87754.0,87744.0,0.01017095]
[1766622867965,0.02515402,87753.0,87744.0,0.01017095]
[1766622868162,0.02515402,87752.0,87744.0,0.01017095]
[1766622868368,0.02515402,87751.0,87744.0,0.01017095]
[1766622868570,0.02515402,87750.0,87744.0,0.01017095]
[1766622868878,0.02515402,87749.0,87740.0,0.00355449]
[1766622869080,0.02515402,87748.0,87740.0,0.03355449]
[1766622869274,0.02515402,87747.0,87740.0,0.03355449]
[1766622869469,0.02515402,87746.0,87740.0,0.03355449]
[1766622869669,0.02515402,87745.0,87740.0,0.03355449]
[1766622869865,0.02515402,87744.0,87740.0,0.03355449]
[1766622870072,0.02515402,87743.0,87740.0,0.03]
[1766622870370,0.02515402,87742.0,87740.0,0.03]
[1766622870567,0.0114039,87751.0,87740.0,0.03]
[1766622870767,0.02515519,87750.0,87740.0,0.03]
[1766622870970,0.02515519,87749.0,87740.0,0.03]
[1766622871172,0.02515519,87748.0,87740.0,0.03]
[1766622871375,0.02515519,87747.0,87740.0,0.03]
[1766622871576,0.0114035,87754.0,87740.0,0.03]
[1766622872573,0.0114031,87757.0,87740.0,0.03]
[1766622873784,0.0114027,87760.0,87740.0,0.03]
[1766622874484,0.0114027,87760.0,87741.0,0.0114051]
[1766622874782,0.0114027,87760.0,87741.0,0.0414051]
[1766622875384,0.07285989,87760.0,87741.0,0.0414051]
[1766622876881,0.05708,87759.0,87741.0,0.03]
[1766622877078,0.00017095,87762.0,87741.0,0.019]
[1766622877276,0.00017095,87762.0,87747.0,0.0114043]
[1766622877478,0.00017095,87762.0,87747.0,0.0414043]
[1766622879976,0.0409859,87759.0,87747.0,0.0414043]
[1766622880982,0.0409859,87759.0,87747.0,0.03]
[1766622881380,0.0409859,87758.0,87747.0,0.03]
[1766622882389,0.06145719,87756.0,87747.0,0.01]
[1766622883288,0.06145719,87755.0,87747.0,0.01]
[1766622884279,0.06145719,87754.0,87747.0,0.001]
[1766622885293,0.06145719,87753.0,87747.0,0.001]
[1766622887001,0.06145719,87750.0,87747.0,0.001]
[1766622887582,0.06145719,87750.0,87747.0,0.03]
[1766622888796,0.06145719,87749.0,87747.0,0.03]
[1766622888987,0.06145719,87749.0,87747.0,0.01]
[1766622889184,0.07286039,87756.0,87737.0,0.0684855]
[1766622889391,0.0114032,87756.0,87739.0,0.0114053]
[1766622889692,0.0114032,87756.0,87739.0,0.0414053]
[1766622890492,0.02491542,87755.0,87739.0,0.0414053]
[1766622890687,0.02491542,87754.0,87739.0,0.0414053]
[1766622890894,0.02491542,87753.0,87739.0,0.0414053]
[1766622891092,0.02491542,87752.0,87739.0,0.0414053]
[1766622891292,0.02491542,87751.0,87741.0,0.0114051]
[1766622891489,0.02491542,87750.0,87741.0,0.0414051]
[1766622891685,0.02491542,87749.0,87741.0,0.0414051]
[1766622891886,0.02491542,87748.0,87741.0,0.0414051]
[1766622892193,0.02491542,87747.0,87741.0,0.0414051]
[1766622892394,0.02491542,87746.0,87741.0,0.0414051]
[1766622892596,0.02491542,87745.0,87741.0,0.0414051]
[1766622892794,0.02491542,87744.0,87741.0,0.03]
[1766622892992,2e-08,87743.0,87741.0,0.03]
[1766622893195,0.051523,87757.0,87741.0,0.03]
[1766622896295,0.051523,87757.0,87741.0,0.019]
[1766622898401,0.04012,87757.0,87742.0,0.0114049]
[1766622898699,0.04012,87757.0,87742.0,0.0414049]
[1766622898897,0.0515231,87757.0,87742.0,0.03]
[1766622899089,0.0114037,87752.0,87736.0,0.00017095]
[1766622899397,0.0114037,87752.0,87736.0,9.5e-07]
[1766622899598,0.0114056,87738.0,87736.0,9.5e-07]
[1766622899799,0.0114055,87738.0,87704.0,0.0114098]
[1766622900000,0.0372,87744.0,87717.0,0.00304]
[1766622900191,0.0114053,87740.0,87723.0,0.0114074]
[1766622900394,0.0114053,87740.0,87723.0,0.04157835]
[1766622900395,0.01157625,87740.0,87723.0,0.04157835]
[1766622902206,0.0114057,87737.0,87723.0,0.04157835]
[1766622903515,0.0114057,87737.0,87723.0,0.02417095]
[1766622905116,0.02537447,87736.0,87723.0,0.02417095]
[1766622905310,0.00017095,87740.0,87723.0,0.02417095]
[1766622905311,0.03678047,87735.0,87723.0,0.02417095]
[1766622905511,0.02537447,87734.0,87723.0,0.02417095]
[1766622905712,0.02537447,87733.0,87723.0,0.02417095]
[1766622905914,0.02537447,87732.0,87723.0,0.02417095]
[1766622906116,0.02537447,87731.0,87723.0,0.02417095]
[1766622906419,0.02537447,87730.0,87723.0,0.02417095]
[1766622906614,0.011406,87735.0,87723.0,0.02417095]
[1766622906817,0.02536345,87734.0,87723.0,0.02417095]
[1766622907009,0.02536345,87733.0,87723.0,0.02417095]
[1766622907210,0.02536345,87732.0,87723.0,0.02417095]
[1766622907523,0.00017095,87740.0,87723.0,0.03557835]
[1766622907722,0.01157625,87740.0,87723.0,0.03557835]
[1766622908421,0.0114056,87738.0,87723.0,0.02417095]
[1766622910521,0.0114056,87738.0,87723.0,0.01417095]
[1766622911421,0.00017095,87740.0,87723.0,0.01417095]
[1766622911823,0.00017095,87740.0,87724.0,0.0114073]
[1766622912023,0.00017095,87740.0,87724.0,0.0414073]
[1766622912623,0.00017095,87740.0,87724.0,0.03]
[1766622913325,0.00017095,87740.0,87724.0,0.0414073]
[1766622915029,0.00017095,87740.0,87727.0,0.0114068]
[1766622915324,0.00017095,87740.0,87727.0,0.0414068]
[1766622915829,0.055,87747.0,87733.0,0.0114061]
[1766622916125,0.055,87747.0,87733.0,0.0414061]
[1766622917524,0.055,87747.0,87733.0,0.03]
[1766622918028,0.055,87747.0,87733.0,0.0414061]
[1766622919626,0.02520565,87746.0,87733.0,0.0414061]
[1766622919830,0.02520565,87745.0,87733.0,0.0414061]
[1766622920130,0.02520565,87744.0,87733.0,0.0414061]
[1766622920332,0.02520565,87743.0,87733.0,0.0414061]
[1766622920530,0.02520565,87742.0,87733.0,0.0414061]
[1766622920731,0.02520565,87741.0,87733.0,0.0414061]
[1766622920934,0.02520565,87740.0,87733.0,0.0414061]
[1766622921133,0.055,87747.0,87733.0,0.0414061]
[1766622924638,0.055,87747.0,87733.0,0.0304061]
[1766622929245,0.09595766,87747.0,87733.0,0.0304061]
[1766622929742,0.09595766,87747.0,87733.0,0.0114061]
[1766622929941,0.09595766,87747.0,87717.0,1.4546]
[1766622929942,0.0114084,87716.0,87681.0,1.4660128]
[1766622930133,0.011409,87712.0,87688.0,0.011412]
[1766622930336,0.00708,87718.0,87688.0,0.03]
[1766622930533,0.0114098,87706.0,87688.0,0.03]
[1766622930732,0.01115555,87707.0,87688.0,0.03]
[1766622930942,0.0114103,87701.0,87689.0,0.05729095]
[1766622931138,0.0114098,87705.0,87689.0,0.08729095]
[1766622931337,0.00017095,87706.0,87689.0,0.08729095]
[1766622931338,0.0114105,87700.0,87689.0,0.08729095]
[1766622931746,0.00017095,87706.0,87689.0,0.01101469]
[1766622931951,0.0114111,87696.0,87689.0,0.0258101]
[1766622932948,0.0114106,87699.0,87689.0,0.0258101]
[1766622933148,0.02595012,87698.0,87689.0,0.0258101]
[1766622933337,0.0114106,87699.0,87689.0,0.0258101]
[1766622933839,0.0114102,87702.0,87689.0,0.0258101]
[1766622934036,0.02593189,87701.0,87689.0,0.0258101]
[1766622934238,0.02593189,87700.0,87689.0,0.0258101]
[1766622934448,0.00017095,87706.0,87689.0,0.0258101]
[1766622934640,0.02591512,87705.0,87689.0,0.0258101]
[1766622934842,0.0114108,87697.0,87689.0,0.0258101]
[1766622935037,0.00017095,87706.0,87683.0,0.00228096]
[1766622935243,0.0114122,87687.0,87683.0,0.03000007]
[1766622937147,0.0114118,87690.0,87683.0,0.03000007]
[1766622938446,0.0114121,87688.0,87683.0,7e-08]
[1766622938841,0.0114121,87688.0,87675.0,0.00332]
[1766622939149,0.0114124,87686.0,87675.0,0.02332]
[1766622940342,1.05e-06,87690.0,87675.0,0.02332]
[1766622940551,0.0114114,87693.0,87675.0,0.02332]
[1766622940759,0.01636,87697.0,87675.0,0.02332]
[1766622941049,0.011411,87696.0,87675.0,0.02332]
[1766622941437,0.00017105,87694.0,87677.0,0.00017105]
[1766622941637,0.00017105,87694.0,87677.0,0.03017105]
[1766622942154,0.011411,87696.0,87677.0,0.03017105]
[1766622943049,0.0114112,87694.0,87677.0,0.03017105]
[1766622943444,0.00017105,87695.0,87677.0,0.03017105]
[1766622945457,0.00017105,87695.0,87678.0,0.0114133]
[1766622945661,0.00017105,87695.0,87678.0,0.0414133]
[1766622946149,0.00017105,87695.0,87678.0,0.0354133]
[1766622947253,0.00017105,87695.0,87678.0,0.03]
[1766622947447,0.00017105,87695.0,87681.0,0.0114129]
[1766622947655,0.00017105,87695.0,87681.0,0.0414129]
[1766622953072,0.00017105,87695.0,87681.0,0.03]
[1766622955083,0.00017105,87695.0,87681.0,0.0414129]
[1766622956272,0.02589807,87694.0,87681.0,0.0414129]
[1766622956474,0.00017105,87695.0,87681.0,0.0414129]
[1766622956680,0.02589807,87694.0,87682.0,0.05712]
[1766622956978,0.00017105,87695.0,87682.0,0.08712]
[1766622957177,0.02589807,87694.0,87683.0,0.0114126]
[1766622957377,0.00017105,87695.0,87683.0,0.0414126]
[1766622958976,0.00017105,87695.0,87677.0,0.00017105]
[1766622959274,0.0114133,87679.0,87667.0,0.05734814]
[1766622959483,0.011414,87673.0,87667.0,0.03022814]
[1766622959882,0.06434165,87684.0,87667.0,0.03022814]
[1766622959883,0.0114136,87676.0,87667.0,0.03022814]
[1766622960071,0.0114136,87676.0,87667.0,0.02322814]
[1766622960775,0.04102165,87682.0,87667.0,0.02322814]
[1766622961067,0.0114127,87683.0,87667.0,0.03464284]
[1766622961473,0.0114127,87683.0,87667.0,0.02322814]
[1766622963080,0.05243415,87684.0,87663.0,0.00017105]
[1766622963275,0.0114153,87663.0,87654.0,0.00016]
[1766622963471,0.04102165,87668.0,87653.0,4e-08]
[1766622963676,0.0114156,87661.0,87643.0,0.05716]
[1766622963887,0.0114156,87661.0,87643.0,0.08716]
[1766622964391,0.0114159,87659.0,87643.0,0.08716]
[1766622966885,0.0114161,87657.0,87643.0,0.08716]
[1766622967181,0.0114161,87657.0,87643.0,0.06516]
[1766622970478,0.01152838,87660.0,87643.0,0.06516]
[1766622970679,0.02608233,87659.0,87643.0,0.06516]
[1766622970980,0.02608233,87658.0,87643.0,0.06516]
[1766622971179,0.01152838,87660.0,87643.0,0.06516]
[1766622971378,0.02607707,87659.0,87643.0,0.06516]
[1766622971579,0.00011268,87660.0,87643.0,0.06516]
[1766622971580,0.00011268,87660.0,87643.0,0.0765777]
[1766622971980,0.02607685,87659.0,87643.0,0.0765777]
[1766622972182,0.00011268,87660.0,87643.0,0.0765777]
[1766622972382,0.02607326,87659.0,87643.0,0.0765777]
[1766622972582,0.02607326,87658.0,87643.0,0.0765777]
[1766622972789,0.02607326,87657.0,87643.0,0.0765777]
[1766622973089,0.02607326,87656.0,87643.0,0.0765777]
[1766622973288,0.02892,87668.0,87643.0,0.06516]
[1766622973595,0.02892,87668.0,87648.0,0.0114171]
[1766622973784,0.02892,87668.0,87648.0,0.0414171]
[1766622974089,0.0114151,87664.0,87648.0,0.03]
[1766622974286,0.0114151,87664.0,87643.0,0.03516]
[1766622974589,0.0114151,87664.0,87647.0,0.00017105]
[1766622974791,0.0114151,87664.0,87647.0,0.03017105]
[1766622976089,0.00017105,87665.0,87647.0,0.03017105]
[1766622977192,0.00017105,87665.0,87647.0,0.04158835]
[1766622978694,0.00017105,87665.0,87649.0,0.0114171]
[1766622978894,0.00017105,87665.0,87649.0,0.0414171]
[1766622979787,0.0411927,87665.0,87649.0,0.0414171]
[1766622979991,0.0526077,87665.0,87649.0,0.03]
[1766622980399,0.0114153,87663.0,87649.0,0.03]
[1766622981497,0.0114153,87663.0,87649.0,0.022]
[1766622984200,0.00017105,87665.0,87649.0,0.022]
[1766622985100,0.0114151,87664.0,87649.0,0.022]
[1766622985301,0.02599955,87663.0,87649.0,0.022]
[1766622985603,0.02599955,87662.0,87649.0,0.022]
[1766622985787,0.02599955,87661.0,87649.0,0.022]
[1766622986101,0.02599955,87660.0,87649.0,0.022]
[1766622986304,0.02599955,87659.0,87649.0,0.022]
[1766622986504,0.02599955,87658.0,87649.0,0.022]
[1766622986704,0.02599955,87657.0,87649.0,0.022]
[1766622987001,0.02599955,87656.0,87649.0,0.022]
[1766622987198,0.0114151,87664.0,87649.0,0.022]
[1766622987390,0.0114154,87662.0,87649.0,0.022]
[1766622987594,0.02602424,87661.0,87649.0,0.022]
[1766622987794,0.02602424,87660.0,87649.0,0.022]
[1766622988092,0.00017105,87665.0,87649.0,0.022]
[1766622988402,0.0411927,87665.0,87649.0,0.022]
[1766622989089,0.0729438,87669.0,87649.0,0.03376]
[1766622989292,0.0114145,87669.0,87649.0,0.065177]
[1766622989904,0.1066493,87670.0,87651.0,0.0114168]
[1766622990105,0.00017105,87669.0,87652.0,0.00017105]
[1766622990302,0.00017105,87669.0,87652.0,0.03017105]
[1766622991004,0.06170035,87669.0,87652.0,0.03017105]
[1766622992296,1.05e-06,87669.0,87657.0,0.0114159]
[1766622992502,0.05716,87677.0,87657.0,0.0414159]
[1766622992700,0.08185369,87682.0,87657.0,0.0414159]
[1766622992897,0.05716,87681.0,87657.0,0.0414159]
[1766622993103,0.08185369,87680.0,87657.0,0.0414159]
[1766622993298,0.0114133,87678.0,87657.0,0.0414159]
[1766622993505,0.00017105,87676.0,87661.0,0.0114154]
[1766622993694,0.00017105,87676.0,87661.0,0.0414154]
[1766622995999,0.00228096,87683.0,87661.0,0.0414154]
[1766622996000,9.6e-07,87683.0,87661.0,0.03]
[1766622996205,9.6e-07,87683.0,87666.0,0.0114148]
[1766622996403,9.6e-07,87683.0,87666.0,0.0414148]
[1766622997006,0.00017201,87683.0,87666.0,0.03]
[1766622997207,0.0114118,87690.0,87666.0,0.03]
[1766622997409,0.00292,87691.0,87666.0,0.0414148]
[1766622998109,0.00017105,87687.0,87670.0,0.00017105]
[1766622998404,0.00017105,87687.0,87670.0,0.03017105]
[1766622998706,0.01158325,87687.0,87670.0,0.03017105]
[1766622999408,0.01158325,87687.0,87670.0,0.04158535]
[1766623000110,0.02533413,87686.0,87670.0,0.04158535]
[1766623000305,0.03674663,87685.0,87670.0,0.03017105]
[1766623000507,0.02533413,87684.0,87670.0,0.03017105]
[1766623001308,0.02533413,87684.0,87670.0,0.02]
[1766623002406,0.02533356,87683.0,87670.0,0.02]
[1766623002607,0.02533356,87682.0,87670.0,0.02]
[1766623002812,0.02533356,87681.0,87670.0,0.02]
[1766623003110,0.02533356,87680.0,87670.0,0.02]
[1766623003408,0.02533356,87679.0,87670.0,0.02]